bitfinex-derivatives/quotes_BNBF0:USTF0_20250221
["timestamp","ask_amount","ask_price","bid_price","bid_amount"]
[1740165072467,1.520458,645.31,644.55,1.405]
[1740165072672,1.5204628,645.3,644.55,1.405]
[1740165072868,1.59770014,645.37,644.55,1.405]
[1740165072869,1.5204676,645.29,644.55,1.405]
[1740165073071,1.52047241,645.28,644.55,1.405]
[1740165073274,1.52047721,645.27,644.55,1.405]
[1740165073475,1.21052944,645.26,644.55,1.405]
[1740165073675,1.52048682,645.25,644.55,1.405]
[1740165073875,1.52049162,645.24,644.55,1.405]
[1740165074077,1.52049642,645.23,644.55,1.405]
[1740165074376,1.20815094,645.22,644.55,1.405]
[1740165074576,0.30997659,645.21,644.55,1.405]
[1740165074975,0.99769011,645.2,644.55,1.405]
[1740165075177,0.3099862,645.19,644.55,1.405]
[1740165075574,0.99769011,645.18,644.55,1.405]
[1740165075775,0.30999581,645.17,644.55,1.405]
[1740165075979,0.99769011,645.16,644.55,1.405]
[1740165076174,0.31000542,645.15,644.55,1.405]
[1740165076578,0.99769011,645.14,644.55,1.405]
[1740165077382,0.99769011,645.13,644.55,1.405]
[1740165078079,0.99769011,645.12,644.55,1.405]
[1740165078377,1.59770014,645.14,644.55,1.405]
[1740165078378,0.99769011,645.11,644.55,1.405]
[1740165079278,0.99769011,645.1,644.55,1.405]
[1740165079682,1.30772436,645.09,644.55,1.405]
[1740165080682,2.59539025,645.08,644.55,1.405]
[1740165081298,0.99769011,645.07,644.55,1.405]
[1740165081998,0.99769011,645.06,644.55,1.405]
[1740165082696,0.99769011,645.05,644.55,1.405]
[1740165082897,0.31005829,645.04,644.55,1.405]
[1740165083392,0.99769011,645.03,644.55,1.405]
[1740165083597,0.3100679,645.02,644.55,1.405]
[1740165092100,0.3100679,645.02,644.56,0.28489288]
[1740165092595,0.3100679,645.02,644.55,1.405]
[1740165092797,0.3100679,645.02,644.56,0.2848941]
[1740165092997,0.3100679,645.02,644.55,1.405]
[1740165093602,0.3100679,645.02,644.56,0.28489429]
[1740165096403,0.3100679,645.02,644.57,0.28479892]
[1740165096604,0.3100679,645.02,644.58,0.28479892]
[1740165096904,0.3100679,645.02,644.59,0.28479892]
[1740165097100,0.3100679,645.02,644.56,0.28479892]
[1740165097299,0.3100679,645.02,644.57,0.28479892]
[1740165097498,0.3100679,645.02,644.56,0.28479892]
[1740165097703,0.3100679,645.02,644.57,0.28479892]
[1740165097899,0.3100679,645.02,644.55,1.405]
[1740165098101,0.3100679,645.02,644.56,0.28484515]
[1740165101407,0.30978454,645.61,644.56,0.28484515]
[1740165101606,0.30978454,645.61,644.55,1.405]
[1740165101806,1.21880389,645.6,644.55,1.405]
[1740165102001,0.30979894,645.58,644.55,1.405]
[1740165102607,2.22153511,645.57,644.55,1.405]
[1740165102807,1.21980495,645.56,644.55,1.405]
[1740165103005,0.30981813,645.54,644.55,1.405]
[1740165103201,1.21980495,645.53,644.55,1.405]
[1740165103402,0.30983253,645.51,644.55,1.405]
[1740165104006,1.00173016,645.5,644.55,1.405]
[1740165104206,0.30984693,645.48,644.55,1.405]
[1740165104401,1.00173016,645.47,644.55,1.405]
[1740165105208,0.30986133,645.45,644.55,1.405]
[1740165106600,1.00627721,645.44,644.55,1.405]
[1740165107202,0.30987573,645.42,644.55,1.405]
[1740165108208,1.00627721,645.41,644.55,1.405]
[1740165108509,0.30989014,645.39,644.55,1.405]
[1740165113715,0.30989014,645.39,644.56,0.28489037]
[1740165114415,0.30989014,645.39,644.57,0.28489037]
[1740165114609,0.30989014,645.39,644.58,0.28489037]
[1740165114810,0.30989014,645.39,644.59,0.28489037]
[1740165115013,0.30989014,645.39,643.93,0.28489037]
[1740165115210,0.30989014,645.39,644.6,0.97]
[1740165119114,0.26510964,645.38,644.6,0.97]
[1740165119318,0.30989974,645.37,644.6,0.97]
[1740165119517,0.26510964,645.36,644.6,0.97]
[1740165119917,1.01169999,645.35,644.6,0.97]
[1740165120113,0.26510964,645.34,644.6,0.97]
[1740165120318,0.57502379,645.34,644.6,0.97]
[1740165120519,1.27680963,645.33,644.6,0.97]
[1740165120720,0.5750328,645.32,644.6,0.97]
[1740165120919,0.26510905,645.31,644.6,0.97]
[1740165121516,0.30993336,645.3,644.6,0.97]
[1740165121918,0.26508894,645.29,644.6,0.97]
[1740165122121,1.01181522,645.28,644.6,0.97]
[1740165122321,0.26508894,645.27,644.6,0.97]
[1740165122518,1.01181522,645.28,644.6,0.97]
[1740165122723,0.30995257,645.26,644.6,0.97]
[1740165138343,0.30995257,645.26,644.61,0.28488927]
[1740165139644,0.30995257,645.26,644.6,0.97]
[1740165139944,0.30995257,645.26,644.61,0.28487766]
[1740165143045,0.30995257,645.26,644.6,0.97]
[1740165143344,0.30995257,645.26,644.61,0.28483736]
[1740165147647,0.30995257,645.26,644.6,0.97]
[1740165147848,0.30995257,645.26,644.61,0.28486947]
[1740165149750,0.30995257,645.26,644.6,0.97]
[1740165150749,0.30995257,645.26,644.61,0.28484673]
[1740165153550,0.30995257,645.26,644.62,0.28484673]
[1740165153748,0.30995257,645.26,644.22,0.28484673]
[1740165153951,0.30995257,645.26,644.23,0.28481065]
[1740165154248,0.30995257,645.26,644.24,1.71381065]
[1740165154454,0.30995257,645.26,644.25,0.28481065]
[1740165155551,0.30995257,645.26,644.26,0.28485234]
[1740165155755,0.30995257,645.26,644.25,0.28485234]
[1740165159658,0.30995257,645.26,644.26,1.61932644]
[1740165159858,0.30995257,645.26,644.27,0.28485234]
[1740165160254,0.30995257,645.26,644.28,0.28484623]
[1740165160458,0.30995257,645.26,644.27,0.28484623]
[1740165160660,0.30995257,645.26,644.28,0.28484623]
[1740165160855,0.30995257,645.26,644.27,0.28484623]
[1740165161159,0.30995257,645.26,644.28,0.28484623]
[1740165161354,0.30995257,645.26,644.27,0.28484623]
[1740165161553,0.30995257,645.26,644.28,0.28484623]
[1740165161758,0.30995257,645.26,644.27,0.28484623]
[1740165162060,0.30995257,645.26,644.28,0.28484623]
[1740165162362,0.30995257,645.26,644.29,0.28484623]
[1740165162554,0.30995257,645.26,644.27,0.28484623]
[1740165162754,0.30995257,645.26,644.28,0.28484623]
[1740165162959,0.30995257,645.26,644.27,0.28484623]
[1740165165860,0.30995257,645.26,644.28,0.88958886]
[1740165166060,0.30995257,645.26,644.29,0.88958886]
[1740165166257,0.30995257,645.26,644.3,0.88958886]
[1740165166463,0.30995257,645.26,644.26,1.61932644]
[1740165166464,0.30995257,645.26,644.43,1.36113665]
[1740165166661,0.30995257,645.26,644.44,0.28484623]
[1740165168564,0.30995257,645.26,644.45,1.77684623]
[1740165168762,0.30995257,645.26,644.46,0.28484623]
[1740165170272,0.30995257,645.26,644.47,0.28485901]
[1740165170470,0.30995257,645.26,644.46,0.28485901]
[1740165170666,0.30995257,645.26,644.45,1.492]
[1740165181584,0.30995257,645.26,644.46,0.28489233]
[1740165183683,0.30995257,645.26,644.45,1.492]
[1740165189084,0.30995257,645.26,644.46,0.28489329]
[1740165199191,0.30995257,645.26,644.45,1.492]
[1740165199493,0.30995257,645.26,644.46,0.2848869]
[1740165200700,0.30995257,645.26,644.45,1.492]
[1740165200902,0.30995257,645.26,644.46,0.28489391]
[1740165203995,0.30995257,645.26,644.47,0.28490164]
[1740165204201,0.30995257,645.26,644.48,0.28490164]
[1740165204403,0.30995257,645.26,644.46,0.28490164]
[1740165208100,0.30995257,645.26,644.45,1.492]
[1740165214511,0.30995257,645.26,643.9,1.36113665]
[1740165214710,0.30995257,645.26,643.91,0.28489503]
[1740165215713,0.30995257,645.26,643.92,1.61972842]
[1740165216014,0.30995257,645.26,643.93,0.28489503]
[1740165218212,0.30995257,645.26,643.93,0.88984453]
[1740165219213,0.30995257,645.26,643.94,0.88984453]
[1740165219413,0.30995257,645.26,643.95,0.28489503]
[1740165219611,0.30995257,645.26,643.94,0.28489503]
[1740165219815,0.30995257,645.26,643.92,2.98086507]
[1740165220010,0.30995257,645.26,643.93,0.88990949]
[1740165221214,0.30995257,645.26,644.2,1.36113665]
[1740165221416,0.30995257,645.26,644.21,0.2849209]
[1740165222317,0.30995257,645.26,644.2,1.36113665]
[1740165222509,0.30995257,645.26,644.21,0.28490648]
[1740165223013,0.30995257,645.26,644.2,1.36113665]
[1740165223216,0.30995257,645.26,644.21,0.28489346]
[1740165223719,0.30995257,645.26,644.22,0.28489346]
[1740165223922,0.30995257,645.26,644.23,0.28489346]
[1740165224118,0.30995257,645.26,644.05,0.28489346]
[1740165224320,0.30995257,645.26,644.06,0.28489346]
[1740165224521,0.30995257,645.26,644.05,0.28489346]
[1740165224822,0.30995257,645.26,644.06,0.28490038]
[1740165225123,0.30995257,645.26,644.11,1.36113665]
[1740165225318,0.30995257,645.26,644.12,0.28490038]
[1740165226318,0.30995257,645.26,644.13,0.28490195]
[1740165226623,0.30995257,645.26,644.14,0.28490195]
[1740165226825,0.30995257,645.26,644.12,0.28490195]
[1740165227023,0.30995257,645.26,644.13,0.28490195]
[1740165227219,0.30995257,645.26,644.1,0.28490195]
[1740165227424,0.30995257,645.26,644.11,0.28490195]
[1740165227624,0.30995257,645.26,644.12,0.88984813]
[1740165227824,0.30995257,645.26,644.13,0.60494618]
[1740165228025,0.30995257,645.26,644.11,0.60494618]
[1740165228228,0.30995257,645.26,644.12,0.88984813]
[1740165228428,0.30995257,645.26,644.13,0.60494618]
[1740165228626,0.30995257,645.26,644.37,1.36113665]
[1740165228822,0.30995257,645.26,644.38,0.28490195]
[1740165229630,0.30995257,645.26,644.39,0.28489612]
[1740165229830,0.30995257,645.26,644.37,1.36113665]
[1740165229831,0.30995257,645.26,644.38,0.28489612]
[1740165230026,0.30995257,645.26,644.39,0.28489612]
[1740165230226,0.30995257,645.26,644.4,0.28489612]
[1740165230426,0.30995257,645.26,644.41,0.28489612]
[1740165230626,0.30995257,645.26,644.42,0.28489612]
[1740165230827,0.30995257,645.26,644.41,0.28489612]
[1740165231028,0.30995257,645.26,644.4,1.36113665]
[1740165231328,0.30995257,645.26,644.41,0.28489611]
[1740165232724,0.30995257,645.26,644.42,0.28489942]
[1740165232927,0.30995257,645.26,644.4,1.36113665]
[1740165232928,0.30995257,645.26,644.41,0.28489942]
[1740165233130,0.30995257,645.26,644.42,0.28489942]
[1740165233328,0.30995257,645.26,644.41,0.28489942]
[1740165233522,0.30995257,645.26,644.42,0.28489942]
[1740165233728,0.30995257,645.26,644.41,0.28489942]
[1740165234029,0.30995257,645.26,644.42,0.28489942]
[1740165234229,0.30995257,645.26,644.41,0.28489942]
[1740165234424,0.30995257,645.26,644.42,0.28489942]
[1740165234628,0.30995257,645.26,644.41,0.28489942]
[1740165234828,0.30995257,645.26,644.42,0.28489942]
[1740165235029,0.30995257,645.26,644.41,0.28489942]
[1740165235223,0.30995257,645.26,644.42,0.28489942]
[1740165235429,0.30995257,645.26,644.41,0.28489942]
[1740165235630,0.30995257,645.26,644.42,0.28489942]
[1740165235830,0.30995257,645.26,644.41,0.28489942]
[1740165236029,0.30995257,645.26,644.42,0.28489942]
[1740165236227,0.30995257,645.26,644.41,0.28489942]
[1740165236431,0.30995257,645.26,644.42,0.28489942]
[1740165236632,0.30995257,645.26,644.41,0.28489942]
[1740165236834,0.30995257,645.26,644.42,0.28489942]
[1740165237133,0.30995257,645.26,644.43,0.28489942]
[1740165237334,0.30995257,645.26,644.49,1.36113665]
[1740165237529,0.30995257,645.26,644.5,0.28489942]
[1740165238934,0.30995257,645.26,644.51,1.12]
[1740165239130,0.30995257,645.26,644.52,0.28489942]
[1740165241832,0.30995257,645.26,644.51,1.12]
[1740165242538,0.30995257,645.26,644.52,0.28489655]
[1740165243042,0.30995257,645.26,644.51,1.12]
[1740165245541,0.30995257,645.26,644.52,0.28481083]
[1740165246240,0.30995257,645.26,644.53,0.60469221]
[1740165246440,0.30995257,645.26,644.54,0.60469221]
[1740165246743,0.30995257,645.26,644.53,0.60469221]
[1740165246941,0.30995257,645.26,644.53,0.28481083]
[1740165247142,0.30995257,645.26,644.54,0.28481083]
[1740165247341,0.30995257,645.26,644.52,0.28481083]
[1740165247536,0.30995257,645.26,644.53,0.28481083]
[1740165247737,0.30995257,645.26,644.52,0.28481083]
[1740165247942,0.30995257,645.26,644.53,0.28481083]
[1740165248138,0.30995257,645.26,644.52,0.28481083]
[1740165248338,0.30995257,645.26,644.53,0.28481083]
[1740165248640,0.30995257,645.26,644.64,1.36113665]
[1740165248843,0.30995257,645.26,644.65,0.28481083]
[1740165251346,0.30995257,645.26,644.51,1.12]
[1740165251642,0.30995257,645.26,644.52,0.28482257]
[1740165254846,0.30995257,645.26,644.51,1.12]
[1740165255152,0.30995257,645.26,644.52,0.28485413]
[1740165255848,0.30995257,645.26,644.53,0.28484435]
[1740165256048,0.30995257,645.26,644.52,0.28484435]
[1740165256350,0.30995257,645.26,644.53,0.28484435]
[1740165256648,0.30995257,645.26,644.54,0.28484435]
[1740165256853,0.30995257,645.26,644.52,0.28484435]
[1740165257050,0.30995257,645.26,644.53,0.28484435]
[1740165257350,0.30995257,645.26,644.54,0.28484435]
[1740165257645,0.30995257,645.26,644.55,0.28484435]
[1740165257946,0.30995257,645.26,644.56,0.28484435]
[1740165258150,0.30995257,645.26,644.57,0.28484435]
[1740165258347,0.30995257,645.26,644.52,0.28484435]
[1740165258546,0.30995257,645.26,644.51,1.12]
[1740165258547,0.30995257,645.26,644.53,0.28484435]
[1740165258744,0.30995257,645.26,644.51,1.12]
[1740165258745,0.30995257,645.26,644.52,0.28484435]
[1740165258947,0.30995257,645.26,644.53,0.28484435]
[1740165259149,0.30995257,645.26,644.52,0.28484435]
[1740165259450,0.30995257,645.26,644.53,0.28484435]
[1740165259749,0.30995257,645.26,644.54,0.28484435]
[1740165259951,0.30995257,645.26,644.55,0.28484435]
[1740165260249,0.30995257,645.26,644.51,1.12]
[1740165270457,0.30995257,645.26,644.52,0.28488097]
[1740165270656,0.30995257,645.26,644.51,1.12]
[1740165271557,0.30995257,645.26,644.52,0.28488254]
[1740165272660,0.30995257,645.26,644.51,1.12]
[1740165272861,0.30995257,645.26,644.52,0.28482275]
[1740165273360,0.30995257,645.26,644.27,0.28482275]
[1740165273561,0.30995257,645.26,644.28,0.28482275]
[1740165273862,0.30995257,645.26,644.29,0.28482275]
[1740165274054,0.30995257,645.26,642.31,0.88964285]
[1740165274256,0.30995257,645.26,644.29,1.073]
[1740165274456,0.30995257,645.26,644.3,0.28482275]
[1740165276061,0.30995257,645.26,644.31,0.28482275]
[1740165276360,0.30995257,645.26,644.32,0.88964236]
[1740165276662,0.30995257,645.26,644.33,0.28482275]
[1740165276861,0.30995257,645.26,644.3,0.28482275]
[1740165277160,0.30995257,645.26,644.31,0.28482275]
[1740165277362,0.30995257,645.26,644.3,0.28482275]
[1740165278563,0.30995257,645.26,644.29,1.073]
[1740165327218,1.51250235,644.93,644.29,1.073]
[1740165327530,3.11687369,644.92,644.29,1.073]
[1740165327636,5.72297976,644.91,644.29,1.073]
[1740165327829,5.71062961,644.9,644.29,1.073]
[1740165328025,1.51250297,644.85,644.29,1.073]
[1740165328223,5.71062961,644.84,644.29,1.073]
[1740165328420,5.71062961,644.83,644.29,1.073]
[1740165328617,0.56726594,652.78,644.29,1.073]
[1740165328618,1.51250297,644.78,644.29,1.073]
[1740165328921,6.2489173,644.77,644.29,1.073]
[1740165329118,5.24489016,644.76,644.29,1.073]
[1740165329316,5.24489016,644.75,644.29,1.073]
[1740165329514,5.24489016,644.74,644.29,1.073]
[1740165329715,3.21011842,644.73,644.29,1.073]
[1740165329917,3.21011842,644.72,644.29,1.073]
[1740165330116,3.21011842,644.71,644.29,1.073]
[1740165330521,1.23466093,644.71,644.29,1.073]
[1740165330723,3.23145649,644.72,644.29,1.073]
[1740165330918,1.51250297,644.82,644.29,1.073]
[1740165331115,0.26496262,645.25,644.29,1.073]
[1740165331521,1.50874918,644.92,644.29,1.073]
[1740165331710,5.9763873,644.91,644.29,1.073]
[1740165331910,1.50884965,644.83,644.29,1.073]
[1740165332107,3.21781713,644.82,644.29,1.073]
[1740165332302,1.23762197,644.81,644.29,1.073]
[1740165332904,3.22269824,644.8,644.29,1.073]
[1740165333106,1.23762197,644.79,644.29,1.073]
[1740165333406,2.60417344,644.78,644.29,1.073]
[1740165333612,1.54781009,644.77,644.29,1.073]
[1740165333910,1.54781491,644.76,644.29,1.073]
[1740165334111,1.55215758,644.75,644.29,1.073]
[1740165334308,0.31019775,644.75,644.29,1.073]
[1740165334506,0.31020256,644.74,644.29,1.073]
[1740165336509,1.01349397,644.73,644.29,1.073]
[1740165337607,1.01349397,644.72,644.29,1.073]
[1740165338213,1.01349397,644.71,644.29,1.073]
[1740165338812,1.01349397,644.7,644.29,1.073]
[1740165339416,1.01349397,644.69,644.29,1.073]
[1740165339715,1.1434663,645.5,644.29,1.073]
[1740165339716,0.31023143,644.68,644.29,1.073]
[1740165340713,1.25507474,644.67,644.29,1.073]
[1740165340914,0.31023143,644.68,644.29,1.073]
[1740165341114,1.25517676,644.67,644.29,1.073]
[1740165341313,0.31024105,644.66,644.29,1.073]
[1740165341912,1.01581469,644.65,644.29,1.073]
[1740165342312,0.31025068,644.64,644.29,1.073]
[1740165342512,1.32606537,644.64,644.29,1.073]
[1740165343112,1.01581469,644.63,644.29,1.073]
[1740165343318,0.3102603,644.62,644.29,1.073]
[1740165344019,1.25578962,644.61,644.29,1.073]
[1740165344216,1.25578327,644.6,644.29,1.073]
[1740165344421,1.2557389,644.59,644.29,1.073]
[1740165344618,0.3102603,644.62,644.29,1.073]
[1740165345420,1.25595831,644.61,644.29,1.073]
[1740165345719,1.25595831,644.6,644.29,1.073]
[1740165346020,1.25595831,644.59,644.29,1.073]
[1740165346214,1.25595831,644.58,644.29,1.073]
[1740165346422,1.25595831,644.57,644.29,1.073]
[1740165346640,1.25595831,644.56,644.29,1.073]
[1740165346824,1.25595831,644.55,644.29,1.073]
[1740165347015,1.25595831,644.54,644.29,1.073]
[1740165347220,2.64257254,644.55,644.29,1.073]
[1740165347420,1.25525451,644.54,644.29,1.073]
[1740165347619,0.31030363,644.53,644.29,1.073]
[1740165347922,6.2161385,644.53,644.29,1.073]
[1740165348120,3.26326233,644.52,644.29,1.073]
[1740165348312,1.25525451,644.51,644.29,1.073]
[1740165348517,3.26240317,644.5,644.29,1.073]
[1740165348721,3.57265621,644.49,644.29,1.073]
[1740165348922,3.57235432,644.48,644.29,1.073]
[1740165349120,1.25525451,644.47,644.29,1.073]
[1740165349321,1.25357942,644.46,644.29,1.073]
[1740165349520,1.25357942,644.45,644.29,1.073]
[1740165349720,1.25357942,644.44,644.29,1.073]
[1740165349921,1.25357942,644.43,644.29,1.073]
[1740165350223,1.25357942,644.42,644.29,1.073]
[1740165350419,1.25357942,644.41,644.29,1.073]
[1740165350722,0.3103277,644.48,644.29,1.073]
[1740165351419,1.25258234,644.47,644.29,1.073]
[1740165351723,3.25671408,644.46,644.29,1.073]
[1740165351918,3.25671408,644.45,644.29,1.073]
[1740165352120,1.25258234,644.44,644.29,1.073]
[1740165352419,1.25258234,644.43,644.29,1.073]
[1740165352621,1.25258234,644.42,644.29,1.073]
[1740165352817,1.25258234,644.41,644.29,1.073]
[1740165353018,1.25258234,644.4,644.29,1.073]
[1740165353219,1.25056407,644.39,644.29,1.073]
[1740165353520,1.25056407,644.38,644.29,1.073]
[1740165353719,1.25056407,644.37,644.29,1.073]
[1740165353917,1.52479231,644.31,642.78,1.38674722]
[1740165354219,1.52479231,644.31,642.45,2.67070458]
[1740165354220,1.52479231,644.26,642.45,1.69805549]
[1740165354423,3.40127416,644.25,642.46,0.28565834]
[1740165354622,1.52732991,644.19,642.46,0.28565834]
[1740165354822,3.40127416,644.18,642.46,0.28565834]
[1740165355017,6.02104996,644.17,642.46,0.28565834]
[1740165355221,3.05212222,644.19,642.45,1.38674722]
[1740165355222,5.75288004,644.16,642.47,1.006]
[1740165355422,1.52732991,644.1,642.48,0.28568138]
[1740165355721,6.76669562,644.09,642.48,0.28568138]
[1740165355920,1.01381558,644.09,642.48,0.28568138]
[1740165356118,2.24370214,644.14,642.48,0.28568138]
[1740165356323,0.2647545,644.47,642.48,0.28568138]
[1740165356722,1.51431693,644.19,642.48,0.28568138]
[1740165356920,3.3693638,644.18,642.49,0.28569339]
[1740165357218,1.51431605,644.07,642.5,0.28569339]
[1740165357525,5.95367381,644.06,642.51,0.28569339]
[1740165357721,5.95367381,644.05,642.52,0.28569339]
[1740165357927,1.51431605,643.98,642.53,0.28569339]
[1740165358127,1.51431605,643.98,642.47,1.006]
[1740165358128,5.95367381,643.97,642.48,0.28569339]
[1740165358427,5.95367381,643.96,642.49,0.28569339]
[1740165358726,5.48727007,643.95,642.5,0.28569339]
[1740165358923,5.22250189,643.94,642.48,0.28569339]
[1740165359123,0.31059758,643.92,642.49,0.28569339]
[1740165359320,5.52476106,643.92,642.5,0.28569339]
[1740165359524,5.21416259,643.91,642.48,0.28569339]
[1740165359726,0.31061206,643.89,642.49,0.28569339]
[1740165360026,4.90286886,643.89,642.5,0.28569339]
[1740165360229,5.59734981,643.88,642.51,0.28569339]
[1740165360426,0.31062653,643.86,642.48,0.28569339]
[1740165360622,4.90288333,643.86,642.49,0.28569339]
[1740165360822,0.31062653,643.86,642.48,0.28569339]
[1740165361024,1.00509301,643.85,642.49,0.28569339]
[1740165361223,1.00509301,643.85,642.48,0.28569042]
[1740165361422,0.31062653,643.86,642.49,0.28569042]
[1740165361726,0.31062653,643.86,642.47,1.006]
[1740165361727,0.26480847,643.85,642.5,0.28569042]
[1740165361921,0.26480847,643.85,642.48,0.28569042]
[1740165362122,0.310641,643.83,642.49,0.28569042]
[1740165362325,0.310641,643.83,642.5,0.28569042]
[1740165362526,0.310641,643.83,642.47,1.006]
[1740165362726,0.310641,643.83,642.48,0.28570415]
[1740165364224,0.310641,643.83,642.49,0.28571581]
[1740165364529,2.48364347,643.82,642.47,1.006]
[1740165364728,3.43499713,643.81,642.48,0.2858207]
[1740165364926,3.4349287,643.8,642.48,0.2858207]
[1740165365127,3.4349287,643.79,642.48,0.2858207]
[1740165365328,4.83633316,643.78,642.48,0.2858207]
[1740165365529,4.83633316,643.77,642.48,0.2858207]
[1740165365730,3.4349287,643.76,642.48,0.2858207]
[1740165365931,0.31068443,643.74,642.48,0.2858207]
[1740165366124,0.26483733,643.73,642.48,0.2858207]
[1740165366323,0.31069891,643.71,642.48,0.2858207]
[1740165366528,1.48410324,643.7,641.3,0.2858207]
[1740165366729,1.48155847,643.69,641.32,0.31185679]
[1740165366930,1.48155847,643.68,641.33,0.89262869]
[1740165367125,0.3107665,643.57,641.35,0.3118422]
[1740165367331,0.26479898,643.56,641.36,0.89264274]
[1740165367623,0.26479898,643.56,641.38,0.31182762]
[1740165367827,0.26479898,643.56,641.39,0.89264274]
[1740165368029,0.99951391,643.55,641.4,0.89264274]
[1740165368226,0.26479898,643.54,641.41,0.89264274]
[1740165368428,0.26479898,643.54,641.42,0.89264274]
[1740165368627,0.26479898,643.53,641.43,0.89264274]
[1740165368823,0.3107665,643.57,641.44,1.20444119]
[1740165368824,0.26479898,643.56,641.44,1.20444119]
[1740165369024,0.26479898,643.55,641.45,0.89264274]
[1740165369228,0.99951391,643.52,641.46,0.28582628]
[1740165369529,0.26479898,643.51,641.47,0.89264274]
[1740165369729,0.31084378,643.41,641.48,0.89264274]
[1740165369926,0.31084378,643.41,641.48,0.28582628]
[1740165370123,0.99951391,643.4,641.49,0.89264274]
[1740165370323,0.99951391,643.4,641.5,0.89264274]
[1740165370530,0.99951391,643.4,641.51,0.28582628]
[1740165370731,0.99951391,643.4,641.45,0.60681646]
[1740165370732,0.99951391,643.4,641.52,0.89264274]
[1740165370931,0.31085827,643.38,641.53,0.28582628]
[1740165371130,0.31085827,643.38,641.54,0.28582628]
[1740165371329,0.31085827,643.38,641.55,0.28582628]
[1740165371534,0.99951391,643.37,641.56,0.28582628]
[1740165371733,0.99951391,643.37,641.57,0.28582628]
[1740165371937,0.31087277,643.35,641.58,0.89264274]
[1740165372129,0.31087277,643.35,641.56,0.89264274]
[1740165372435,0.31087277,643.35,641.57,0.89264274]
[1740165372734,0.99951391,643.34,641.58,0.28582628]
[1740165372934,0.99951391,643.33,641.59,0.28582628]
[1740165373236,0.99951391,643.33,641.6,0.28582628]
[1740165373430,0.99951391,643.33,641.56,0.28582628]
[1740165373631,0.99951391,643.32,641.57,0.89303359]
[1740165373838,0.26473208,643.31,641.58,0.89303359]
[1740165374037,0.26473208,643.31,641.59,0.89303359]
[1740165374230,0.26473208,643.31,641.6,0.89303359]
[1740165374431,0.26473208,643.34,641.61,0.89303359]
[1740165374635,0.26473208,643.33,641.62,0.2859557]
[1740165374836,0.99173582,643.3,641.63,0.89303359]
[1740165375031,0.99173582,643.3,641.55,1.62549094]
[1740165375235,0.31087277,643.35,641.55,1.62549094]
[1740165375236,0.26468961,643.29,641.64,0.60707874]
[1740165375436,0.26468961,643.34,641.65,0.89303484]
[1740165375638,0.31087277,643.35,641.55,1.62549094]
[1740165375639,0.26468961,643.33,641.66,0.89303484]
[1740165375832,0.99045303,643.33,641.67,0.89303484]
[1740165376031,0.26468961,643.32,641.68,0.89303484]
[1740165376234,0.26468961,643.32,641.69,0.2859561]
[1740165376431,0.99045303,643.33,641.7,0.2859561]
[1740165376634,0.31087277,643.35,641.71,0.89303484]
[1740165376838,0.26472087,643.34,641.72,0.89303484]
[1740165377035,0.26472087,643.34,641.73,0.89303484]
[1740165377231,0.26472087,643.34,641.74,0.89303484]
[1740165377430,0.26472087,643.34,641.75,0.89303484]
[1740165377634,0.26472087,643.34,641.76,0.60707874]
[1740165377835,0.26472087,643.34,641.55,1.62549094]
[1740165377836,0.26472087,643.34,641.77,0.89303484]
[1740165378033,0.26472087,643.34,641.55,1.62549094]
[1740165378034,0.26472087,643.34,641.78,0.89303484]
[1740165378232,0.31087277,643.35,641.55,1.62549094]
[1740165378433,0.26471871,643.34,641.56,0.89303422]
[1740165378731,0.31087277,643.35,641.57,0.89303422]
[1740165378930,0.26472071,643.34,641.58,0.89303422]
[1740165379135,0.26472071,643.34,641.59,0.89303422]
[1740165379336,0.26472071,643.34,641.6,0.89303422]
[1740165379530,0.31087277,643.35,641.61,0.89303422]
[1740165379735,0.31087277,643.35,641.62,0.89303422]
[1740165379931,0.31087277,643.35,641.63,0.89303422]
[1740165380132,0.31087277,643.35,641.64,0.89303422]
[1740165380433,0.31087277,643.35,641.65,0.89303422]
[1740165380632,0.31087277,643.35,641.66,0.89303422]
[1740165380938,0.31087277,643.35,641.67,0.89303422]
[1740165381135,0.31087277,643.35,641.68,0.89303422]
[1740165381338,0.31087277,643.35,641.69,0.89303422]
[1740165381533,0.31087277,643.35,641.7,0.89303422]
[1740165381733,0.31087277,643.35,641.71,0.89303422]
[1740165382036,0.31087277,643.35,641.72,0.89303422]
[1740165382237,0.31087277,643.35,641.73,0.89303422]
[1740165382432,0.31087277,643.35,641.74,0.89303422]
[1740165382631,0.31087277,643.35,641.75,0.89303422]
[1740165382838,0.31087277,643.35,641.76,0.89303422]
[1740165383138,0.31087277,643.35,641.77,0.89265328]